Cogmind - Beta 14 @@@ ROGUE MODE // 2024.11.28 @ 07:11:51 Player: The Gourd Result: Destroyed by G-67 Veteran with Plasma Rifle Performance ------------- Evolutions (6) 3000 Regions Visited (18) 3600 Robots Destroyed (109) 545 Value Destroyed (4773) 4773 Prototype IDs (38) 760 Alien Tech Used (0) 0 Bonus (2036) 2036 TOTAL SCORE: 14714 Bonus ------- High Alert Combat Kills 12 Follower Combat Kills 1823 Aligned with FarCom 300 Met Data Miner 300 Friendly Fire -399 Cogmind --------- Core Integrity 0/1150 Matter 100/300 Energy 48/100 System Corruption 22% Temperature Cool (12) Movement Core (50) Location -4/Factory Parts ------- > --- POWER (2) -------- (None) > --- PROPULSION (5) --- (None) > --- UTILITY (8) ------ Advanced Coolant Injector > --- WEAPON (4) ------- (None) > --- INVENTORY (5) ---- Heavy Treads Advanced Plasma Cannon Peak State ------------ > --- POWER ------------ Light Angular Momentum Engine Antimatter Reactor > --- PROPULSION ------- Heavy Treads Heavy Treads > --- UTILITY ---------- Army-in-a-Box > --- WEAPON ----------- Beamcaster Heavy Battle Rifle Heavy Battle Rifle > --- INVENTORY -------- Potential Leg Potential Leg Experimental Sensor Array Advanced Signal Interpreter Field Lobotomy Kit [Rating: 107] Favorites ----------- Power Light Angular Momentum Engine Engine Light Angular Momentum Engine Power Core Neutrino Core Reactor Antimatter Reactor Propulsion Heavy Treads Treads Heavy Treads Leg Potential Leg Wheel Wheel Utility Large Storage Unit Device Advanced Heat Sink Storage Large Storage Unit Processor Advanced Targeting Computer Hackware Hacking Suite Protection Powered Armor Weapon Assault Rifle Energy Gun Beamcaster Energy Cannon Neutron Cannon Ballistic Gun Assault Rifle Ballistic Cannon Mass Driver Slashing Weapon Chainsword Build | -11 -10 -10 -10 -9 -8 -7 -6 -6 -6 -6 -6 -6 -5 -5 -5 -4 -4 -4 ------- Run | Yrd Mat Min Exi Min Mat Fac Fac Was Fac Low Low Dat Pro Fac Ext Fac Was Fac Slots Evolved 12 | . . . . . 4 2 2 . . . . . . 2 . 2 . . Power 1 | . . . . . . 1 . . . . . . . . . . . . Propulsion 3 | . . . . . 1 . 1 . . . . . . 1 . . . . Utility 6 | . . . . . 2 1 1 . . . . . . 1 . 1 . . Weapon 2 | . . . . . 1 . . . . . . . . . . 1 . . Parts Attached 156 | 7 10 3 5 1 4 3 3 19 6 5 4 9 10 19 17 20 2 9 Power 17 | 1 . 2 . . . 1 . 3 . . . . 2 3 2 2 . 1 Engine 6 | 1 . 2 . . . 1 . 1 . . . . . 1 . . . . Core 3 | . . . . . . . . . . . . . 1 1 1 . . . Reactor 8 | . . . . . . . . 2 . . . . 1 1 1 2 . 1 Propulsion 30 | 2 5 1 3 1 1 . 2 2 . . . 1 2 1 2 4 . 3 Treads 24 | 1 3 . 1 1 1 . 2 2 . . . 1 2 1 2 4 . 3 Leg 2 | . . . 2 . . . . . . . . . . . . . . . Wheel 4 | 1 2 1 . . . . . . . . . . . . . . . . Hover . | . . . . . . . . . . . . . . . . . . . Flight . | . . . . . . . . . . . . . . . . . . . Utility 69 | 2 1 . 2 . 2 1 1 9 4 4 . 6 4 12 7 11 1 2 Device 35 | 1 . . . . . . . 1 3 2 . 3 2 10 4 7 1 1 Storage 8 | 1 1 . 1 . . . . 4 . . . . . . . 1 . . Processor 4 | . . . . . . 1 . . . 2 . . 1 . . . . . Hackware 2 | . . . . . . . . . . . . . . . 1 . . 1 Protection 20 | . . . 1 . 2 . 1 4 1 . . 3 1 2 2 3 . . Artifact . | . . . . . . . . . . . . . . . . . . . Weapon 40 | 2 4 . . . 1 1 . 5 2 1 4 2 2 3 6 3 1 3 Energy Gun 4 | 2 . . . . 1 . . . . . . . . 1 . . . . Energy Cannon 11 | . . . . . . . . . . . . . 1 1 5 2 1 1 Ballistic Gun 14 | . 4 . . . . 1 . 5 1 1 1 1 . . . . . . Ballistic Cannon 8 | . . . . . . . . . . . 2 . 1 1 1 1 . 2 Launcher . | . . . . . . . . . . . . . . . . . . . Special Weapon . | . . . . . . . . . . . . . . . . . . . Impact Weapon . | . . . . . . . . . . . . . . . . . . . Slashing Weapon 3 | . . . . . . . . . 1 . 1 1 . . . . . . Piercing Weapon . | . . . . . . . . . . . . . . . . . . . Special Melee Weapon . | . . . . . . . . . . . . . . . . . . . Unidentified Prototypes 3 | . . . . . . . . . . . . 1 . 2 . . . . Parts Lost 28 | . . . . . . . . . 1 . . 4 4 1 1 7 5 5 Power 5 | . . . . . . . . . . . . . 2 . . . 2 1 Propulsion 3 | . . . . . . . . . . . . . . . . 1 . 2 Utility 15 | . . . . . . . . . 1 . . 3 1 1 1 6 1 1 Weapon 5 | . . . . . . . . . . . . 1 1 . . . 2 1 Highest Loss Streak 5 | . . . . . . . . . 1 . . 2 3 1 1 2 5 4 To Critical Strikes . | . . . . . . . . . . . . . . . . . . . Average Slot Usage (%) 80 | . 100 100 100 100 90 92 91 60 65 66 65 68 80 88 93 87 44 7 Engine 5 | . 14 14 14 14 9 8 6 4 6 6 5 6 1 1 . . . . Reactor 4 | . . . . . . . . 7 6 6 6 6 5 5 4 9 4 . Treads 17 | . 19 14 10 28 26 23 26 13 13 13 13 13 18 23 22 19 8 1 Wheel 1 | . 8 14 5 . . . . . . . . . . . . . . . Device 7 | . 14 14 5 . . . . 2 2 4 . 5 17 17 15 14 13 1 Storage 7 | . 14 14 14 14 9 7 6 5 9 6 6 6 6 5 5 5 2 . Processor 2 | . . . . . . 5 6 . . 1 6 1 3 5 4 . . . Protection 9 | . . . 8 14 19 23 24 5 6 6 6 8 5 4 11 14 4 . Energy Gun 1 | . 4 . . . 9 7 6 5 . . . . . . . . . . Energy Cannon 1 | . . . . . . . . . . . . . 2 5 6 10 5 . Ballistic Gun 11 | . 23 28 28 28 18 15 13 13 14 17 14 4 1 . . . . . Ballistic Cannon 3 | . . . . . . . . . . . 4 10 9 10 9 9 4 . Peak Build Rating 107 | 7 8 14 38 21 34 40 46 107 82 82 83 83 78 86 88 107 107 50 Average Rating 64 | 6 7 8 23 21 31 36 42 88 79 81 81 68 72 82 84 101 54 11 On Entrance 50 | . 7 8 14 29 21 34 39 46 78 81 82 83 74 77 83 88 107 2 Naked Turns 161 | . . . . . . . . . . . . . . . . . 57 104 Heaviest Build 131 | 15 20 24 36 36 54 64 59 118 104 101 103 103 85 95 116 131 112 30 Greatest Support 170 | 10 40 10 60 40 62 62 90 140 140 140 140 140 140 143 143 170 162 140 Greatest Overweight (x) 3 | 1 1 2 3 . 1 1 . 1 . . . . . . . . . . Average Overweight (x) . | . . 1 1 . . . . . . . . . . . . . . . Largest Inventory Capacity 15 | 8 10 10 15 15 15 15 15 15 15 15 15 15 15 15 15 15 15 5 Average Capacity 13 | 7 9 10 14 15 15 15 15 10 15 15 15 15 15 15 15 15 10 5 Most Carried 15 | 5 10 10 15 15 15 15 15 15 15 15 15 14 15 15 15 15 12 5 Average Carried 13 | 4 9 9 10 15 14 14 14 10 14 14 14 10 11 14 14 13 8 3 Final Capacity 15 | 8 10 10 15 15 15 15 15 15 15 15 15 15 15 15 15 15 5 5 Final Carried 15 | 5 10 10 15 15 15 15 15 15 15 15 14 9 15 14 15 12 5 3 Class Distribution -------------------- 46% | Scavenger-Tank 18% | Mutant 17% | Scavenger-Mutant 7% | Tank 4% | Scavenger-Gunner 3% | Derelict-Gunner Dominant Class ---------------- Mutant | -10/Materials Mutant | -10/Mines Mutant | -10/Exiles Mutant | -9/Mines Tank | -8/Materials Tank | -7/Factory Scavenger-Tank | -6/Factory Scavenger-Tank | -6/Waste Scavenger-Mutant | -6/Factory Scavenger-Tank | -6/Lower Caves Scavenger-Tank | -6/Lower Caves Scavenger-Mutant | -6/Data Miner Derelict-Gunner | -5/Proximity Caves Scavenger-Tank | -5/Factory Scavenger-Tank | -5/Extension Scavenger-Tank | -4/Factory Mutant | -4/Waste Mutant | -4/Factory Resources | -11 -10 -10 -10 -9 -8 -7 -6 -6 -6 -6 -6 -6 -5 -5 -5 -4 -4 -4 ----------- Run | Yrd Mat Min Exi Min Mat Fac Fac Was Fac Low Low Dat Pro Fac Ext Fac Was Fac Matter Collected 4537 | 270 298 72 20 56 52 30 26 319 86 308 122 538 576 529 635 515 55 30 Remotely . | . . . . . . . . . . . . . . . . . . . Salvage Created 4913 | 162 331 98 . 13 93 . . . 29 484 90 157 414 726 1622 551 . 143 Parts 237 | 10 16 4 . 2 8 . . . 3 18 5 3 17 38 76 32 . 5 Haulers Intercepted 7 | . 1 . . . 2 . . . . . . . . 1 3 . . . Recyclers Shooed 4 | . 1 . . . . . . . . . . . . 1 2 . . . Parts Field Recycled . | . . . . . . . . . . . . . . . . . . . Retrieved Matter . | . . . . . . . . . . . . . . . . . . . Parts Self-Destructed 53 | . . . . . . . . . . 25 5 . 23 . . . . . Prevented . | . . . . . . . . . . . . . . . . . . . Kills | -11 -10 -10 -10 -9 -8 -7 -6 -6 -6 -6 -6 -6 -5 -5 -5 -4 -4 -4 ------- Run | Yrd Mat Min Exi Min Mat Fac Fac Was Fac Low Low Dat Pro Fac Ext Fac Was Fac Combat Hostiles Destroyed 83 | . 7 2 . 1 . . . . . 8 2 4 11 16 18 12 . 2 Melee 1 | . . . . . . . . . . . . 1 . . . . . . Guns 21 | . 7 2 . 1 . . . . . 8 . 1 2 . . . . . Cannons 58 | . . . . . . . . . . . 2 2 9 16 15 12 . 2 AOE 3 | . . . . . . . . . . . . . . . 3 . . . Classes Destroyed 16 | 2 2 1 . 1 . . . . 1 3 1 . . 2 . 3 . . Builder 5 | . . . . . . . . . . . . . . 1 3 . . 1 Tunneler 4 | 4 . . . . . . . . . . . . . . . . . . Hauler 7 | . 1 . . . 2 . . . . . . . . 1 3 . . . Recycler 4 | 1 . 1 . . . . . . . . . . . . 2 . . . Mechanic 1 | . . . . . . . . . . . . . . . . 1 . . Operator 3 | . . . . . . . . . 1 . . . . 1 1 . . . Watcher 1 | . . . . . . . . . . . . . . . . 1 . . Swarmer 14 | . . . . 1 . . . . . . . . 5 5 3 . . . Grunt 33 | . 7 . . . . . . . . 5 . . 2 9 5 3 . 2 Brawler 1 | . . . . . . . . . . . . . . . . 1 . . Duelist 2 | . . . . . . . . . . 1 . . 1 . . . . . Sentry 6 | . . . . . . . . . . 1 . . 1 1 3 . . . Hunter 8 | . . . . . . . . . . . 2 . 2 . 2 2 . . Programmer 9 | . . . . . . . . . . . . . . 1 2 6 . . Behemoth 3 | . . . . . . . . . . 1 . . . . 2 . . . Enhanced Grunt 4 | . . . . . . . . . . . . 4 . . . . . . Assembled 2 | . . 2 . . . . . . . . . . . . . . . . Wasp 1 | . . . . . . . . . . 1 . . . . . . . . Thug 2 | . . . . . . . . . . . . . . . 2 . . . Guerrilla 1 | . . . . . . . . . . . . . . . 1 . . . Best Kill Streak 5 | 3 3 1 . 1 2 . . . 1 3 1 2 3 5 3 2 . 2 Combat Bots Only 5 | . 3 1 . 1 . . . . . 3 1 2 3 5 3 2 . 2 Max Kills in Single Turn 2 | 1 1 1 . 1 1 . . . 1 1 1 1 1 2 2 2 . 1 Gunslinging . | . . . . . . . . . . . . . . . . . . . Exploded 2 | . . . . . . . . . . . . . . . 2 . . . Melee 1 | . . . . . . . . . . . . 1 . . . . . . Uniques/NPCs Destroyed . | . . . . . . . . . . . . . . . . . . . Combat | -11 -10 -10 -10 -9 -8 -7 -6 -6 -6 -6 -6 -6 -5 -5 -5 -4 -4 -4 -------- Run | Yrd Mat Min Exi Min Mat Fac Fac Was Fac Low Low Dat Pro Fac Ext Fac Was Fac Hostile Shots Fired 694 | . 46 7 . 3 7 45 . . 18 49 39 40 68 57 83 61 6 165 Missed 179 | . 9 3 . 1 3 20 . . 12 13 9 8 17 12 18 14 . 40 Damage Taken 10413 | . 436 61 . 13 57 182 . 35 110 592 460 1507 953 608 1215 1413 251 2520 Core 1527 | . 45 . . . 15 6 . . . 15 16 89 88 71 23 276 160 723 Absorbed by Shields 515 | . . . . . . . . . . . . . . 172 295 32 16 . Reduced by Siege Mode 681 | . . . . . . . . . . 45 9 148 81 14 24 25 19 316 Ignored by Resistances 60 | . . . . . . . . . . . . . 18 42 . . . . Regen/Repaired (Parts) 1028 | . . . . . . . . . 125 . . . . . . 473 . 430 Core Remaining (%) 90 | 100 . . . 82 97 99 . . . . . . 75 . 90 . . . Volleys Fired 296 | 14 33 7 . 1 2 . . . . 29 12 30 29 27 60 32 6 14 Largest 4 | 2 2 2 . 2 3 . . . . 3 3 3 3 3 3 4 4 2 Hottest 318 | 100 40 40 . 40 115 . . . . 91 139 139 203 203 228 318 285 155 Shots Fired 708 | 28 66 14 . 2 6 . . 2 1 86 32 53 67 79 141 87 19 25 Gun 254 | 28 66 14 . 2 6 . . 2 1 86 21 14 14 . . . . . Cannon 454 | . . . . . . . . . . . 11 39 53 79 141 87 19 25 Launcher . | . . . . . . . . . . . . . . . . . . . Special . | . . . . . . . . . . . . . . . . . . . Kinetic 526 | . 66 14 . 2 4 . . 1 1 86 32 53 55 53 79 59 9 12 Thermal 156 | 28 . . . . 2 . . 1 . . . . 12 26 38 26 10 13 Explosive . | . . . . . . . . . . . . . . . . . . . Electromagnetic 26 | . . . . . . . . . . . . . . . 24 2 . . Robot Hit Streak 24 | 16 22 11 . 6 3 . . . . 22 6 8 15 14 24 15 19 23 Robot Miss Streak 5 | 2 2 2 . . 2 . . 2 3 5 2 2 3 2 3 2 . 1 Penetration Max 1 | . . . . . . . . . . . . . . 1 1 1 . 1 Secondary Targets 4 | . 1 . . . . . . . . 3 . . . . . . . . Max Gunslinging Chain 1 | . 1 . . . . . . . . 1 . . . . . . . . Shots Hit Robots 513 | 21 51 9 . 2 3 . . . 1 66 20 42 48 56 97 56 19 22 Core Hits 205 | 6 15 6 . 1 2 . . 1 . 24 6 16 20 31 49 21 1 6 Critical Kills 1 | . . . . . 1 . . . . . . . . . . . . . Critical Parts Destroyed 2 | . . . . . . . . . . 2 . . . . . . . . Critical Strikes 27 | 2 . . . . 1 . . . . 2 . 2 3 6 7 4 . . Burn 2 | 2 . . . . . . . . . . . . . . . . . . Destroy 3 | . . . . . 1 . . . . 2 . . . . . . . . Blast 22 | . . . . . . . . . . . . 2 3 6 7 4 . . Melee Attacks 16 | . . . . . . . . . 8 . 1 5 2 . . . . . Impact . | . . . . . . . . . . . . . . . . . . . Slashing 16 | . . . . . . . . . 8 . 1 5 2 . . . . . Piercing . | . . . . . . . . . . . . . . . . . . . Sneak Attacks 1 | . . . . . . . . . 1 . . . . . . . . . Combat Hostiles . | . . . . . . . . . . . . . . . . . . . Follow-up Attacks . | . . . . . . . . . . . . . . . . . . . Damage Inflicted 14592 | 261 627 115 . 25 46 . . 10 77 1384 360 1292 1379 1855 3644 2014 672 831 Guns 3069 | 261 627 115 . 25 46 . . 10 . 1384 205 206 190 . . . . . Cannons 10854 | . . . . . . . . . . . 155 981 1049 1855 3342 2014 672 786 Explosions 302 | . . . . . . . . . . . . . . . 302 . . . Melee 322 | . . . . . . . . . 77 . . 105 140 . . . . . Ramming 45 | . . . . . . . . . . . . . . . . . . 45 Kinetic 9885 | . 627 115 . 25 25 . . 10 . 1384 360 1187 1035 1145 1986 1285 306 395 Thermal 3843 | 261 . . . . 21 . . . . . . . 204 710 1161 729 366 391 Explosive . | . . . . . . . . . . . . . . . . . . . Electromagnetic 497 | . . . . . . . . . . . . . . . 497 . . . Impact . | . . . . . . . . . . . . . . . . . . . Slashing 322 | . . . . . . . . . 77 . . 105 140 . . . . . Piercing . | . . . . . . . . . . . . . . . . . . . Highest Corruption 22 | . . . . . . . 3 3 3 . . . . . . 9 22 22 Average Corruption 5 | . . . . . . . 2 3 2 . . . . . . 8 13 22 Corruption Purged 3 | . . . . . . . . . 3 . . . . . . . . . Corruption Blocked . | . . . . . . . . . . . . . . . . . . . Effects 92 | . . . . . . . 11 25 12 . . . . . . 21 6 17 Message Errors 19 | . . . . . . . 4 9 1 . . . . . . 2 1 2 Matter Fused 20 | . . . . . . . 3 7 2 . . . . . . 5 . 3 Heat Flow Errors 13 | . . . . . . . 1 2 2 . . . . . . 3 2 3 Energy Discharges 8 | . . . . . . . 1 2 2 . . . . . . 3 . . Data Loss (minor) 14 | . . . . . . . 2 2 2 . . . . . . 2 2 4 Data Loss (major) 4 | . . . . . . . . . 2 . . . . . . 2 . . Misfires 5 | . . . . . . . . 2 1 . . . . . . 2 . . Alerts 2 | . . . . . . . . 1 . . . . . . . 1 . . Misdirections 4 | . . . . . . . . . . . . . . . . . 1 3 Weapon Failures 3 | . . . . . . . . . . . . . . . . 1 . 2 Overload Shots . | . . . . . . . . . . . . . . . . . . . Overflow Damage 328 | . . . . . . . . . 42 . . . 58 24 68 88 . 48 Projectiles 286 | . . . . . . . . . . . . . 58 24 68 88 . 48 Explosions . | . . . . . . . . . . . . . . . . . . . Melee 42 | . . . . . . . . . 42 . . . . . . . . . Knockbacks 47 | . . . . . . . . . . . . 8 7 8 9 9 . 6 Impact . | . . . . . . . . . . . . . . . . . . . Kinetic 44 | . . . . . . . . . . . . 8 7 8 8 8 . 5 Secondary 3 | . . . . . . . . . . . . . . . 1 1 . 1 Self-Inflicted Damage 21 | . . . . . . . . . . . . . . . . . . 21 Shots . | . . . . . . . . . . . . . . . . . . . Rammed 6 | . . . . . . . . . . . . . . . . . . 6 Targets Rammed 6 | . . . . . . . . . . . . . . . . . . 6 Kicked . | . . . . . . . . . . . . . . . . . . . Crushed . | . . . . . . . . . . . . . . . . . . . Highest Temperature 669 | 176 2 . . . 81 7 122 398 272 271 417 566 168 227 233 669 448 330 Average Temperature 153 | 74 2 . . . 34 3 60 176 112 90 130 256 65 94 68 238 195 121 Received Heat Transfer 1943 | . 240 . . . 36 54 . 1 12 252 . . 72 161 220 110 . 785 Effects 78 | . . . . . . . . 8 . . 11 13 . . 1 45 . . Shutdowns 30 | . . . . . . . . 1 . . 4 6 . . . 19 . . Energy Bleed 15 | . . . . . . . . 4 . . 4 1 . . 1 5 . . Interference 12 | . . . . . . . . 3 . . 3 1 . . . 5 . . Matter Decay 4 | . . . . . . . . . . . . 2 . . . 2 . . Short Circuit 3 | . . . . . . . . . . . . 2 . . . 1 . . Damage (minor) 5 | . . . . . . . . . . . . 1 . . . 4 . . Damage (major) 8 | . . . . . . . . . . . . . . . . 8 . . Damage (core) 1 | . . . . . . . . . . . . . . . . 1 . . Siege Activations 43 | . . . . . . . . . 1 2 4 2 7 5 12 7 2 1 Total Turns 1511 | . . . . . . . . . 1 62 52 118 137 70 713 302 22 34 Longest Duration 599 | . . . . . . . . . 1 37 23 90 29 24 599 75 21 34 Robots Corrupted . | . . . . . . . . . . . . . . . . . . . Combat Hostiles . | . . . . . . . . . . . . . . . . . . . Parts Fried 3 | . . . . . . . . . . . . . . . 3 . . . Impact Corruptions . | . . . . . . . . . . . . . . . . . . . Robots Melted . | . . . . . . . . . . . . . . . . . . . Combat Hostiles . | . . . . . . . . . . . . . . . . . . . Parts Melted 10 | 2 . . . . . . . . . . . . . 3 5 . . . Heat Transferred 3036 | 925 . . . . 37 . . . . . . . 300 850 250 . 74 600 Parts Sabotaged . | . . . . . . . . . . . . . . . . . . . Parts Stolen 3 | . . . . . . . . . . . 3 . . . . . . . Parts Stripped . | . . . . . . . . . . . . . . . . . . . Power Chain Reactions 2 | . . . . . . . . . . . . . . . 2 . . . Alert | -11 -10 -10 -10 -9 -8 -7 -6 -6 -6 -6 -6 -6 -5 -5 -5 -4 -4 -4 ------- Run | Yrd Mat Min Exi Min Mat Fac Fac Was Fac Low Low Dat Pro Fac Ext Fac Was Fac Peak Influence 1423 | 25 213 9 . 138 44 12 50 9 1423 . . . . 325 448 241 60 208 Initial 166 | . 16 4 . . . . 5 6 . . . . . 40 138 166 60 10 Average 116 | 8 58 2 . 28 16 1 9 . 620 . . . . 209 135 135 28 68 Maximum Alert Level 4 | . 1 . . . . . . . 4 . . . . 1 2 1 . 1 Low Security (%) 83 | 100 96 100 . 100 100 100 100 100 25 . . . . 40 68 97 100 97 Level 1 12 | . 3 . . . . . . . 25 . . . . 59 31 2 . 2 Level 2 1 | . . . . . . . . . 9 . . . . . . . . . Level 3 . | . . . . . . . . . 9 . . . . . . . . . Level 4 2 | . . . . . . . . . 30 . . . . . . . . . Level 5 . | . . . . . . . . . . . . . . . . . . . High Security . | . . . . . . . . . . . . . . . . . . . Max Security . | . . . . . . . . . . . . . . . . . . . Squads Dispatched 28 | . 2 . . . 4 6 1 . 5 . . . . 2 3 2 . 3 Investigation 10 | . 2 . . . 2 1 . . 1 . . . . . 2 . . 2 Extermination 7 | . . . . . . 1 1 . 2 . . . . 1 . 2 . . Reinforcement 6 | . . . . . 1 1 . . 1 . . . . 1 1 . . 1 Assault 1 | . . . . . . . . . 1 . . . . . . . . . Garrison 4 | . . . . . 1 3 . . . . . . . . . . . . Intercept . | . . . . . . . . . . . . . . . . . . . Searches Triggered . | . . . . . . . . . . . . . . . . . . . Construction Impeded 1 | . . . . . . . . . . . . . . . 1 . . . Haulers Reinforced 1 | . . . . . . . . . . . . . . 1 . . . . Active Scanning Responses . | . . . . . . . . . . . . . . . . . . . Cargo Convoy Interrupts . | . . . . . . . . . . . . . . . . . . . Stealth | -11 -10 -10 -10 -9 -8 -7 -6 -6 -6 -6 -6 -6 -5 -5 -5 -4 -4 -4 --------- Run | Yrd Mat Min Exi Min Mat Fac Fac Was Fac Low Low Dat Pro Fac Ext Fac Was Fac Distress Signals 6 | . . . . . 1 1 . . 1 . . . . . 1 1 . 1 Communications Jammed . | . . . . . . . . . . . . . . . . . . . Distress Signals . | . . . . . . . . . . . . . . . . . . . Times Spotted 197 | . 9 6 . 6 4 6 7 5 16 16 12 5 16 19 26 17 6 21 Peak Tracking Total 9 | . 3 2 . 4 2 1 4 1 4 4 4 3 3 5 4 3 6 9 Tactical Retreats 11 | . . 1 . . . . 1 . . 2 . 1 . . . 2 . 4 Traps | -11 -10 -10 -10 -9 -8 -7 -6 -6 -6 -6 -6 -6 -5 -5 -5 -4 -4 -4 ------- Run | Yrd Mat Min Exi Min Mat Fac Fac Was Fac Low Low Dat Pro Fac Ext Fac Was Fac Traps Triggered 8 | . 2 . . . . . 3 . 1 . . . . . . 1 . 1 Indirectly . | . . . . . . . . . . . . . . . . . . . Trap Hack Attempts . | . . . . . . . . . . . . . . . . . . . Triggered . | . . . . . . . . . . . . . . . . . . . Disarmed . | . . . . . . . . . . . . . . . . . . . Reprogrammed . | . . . . . . . . . . . . . . . . . . . Reused . | . . . . . . . . . . . . . . . . . . . Traps Extracted . | . . . . . . . . . . . . . . . . . . . Installed . | . . . . . . . . . . . . . . . . . . . Triggered . | . . . . . . . . . . . . . . . . . . . Machines | -11 -10 -10 -10 -9 -8 -7 -6 -6 -6 -6 -6 -6 -5 -5 -5 -4 -4 -4 ---------- Run | Yrd Mat Min Exi Min Mat Fac Fac Was Fac Low Low Dat Pro Fac Ext Fac Was Fac Machines Disabled 11 | . . . . . . . . . 6 . 1 1 . 1 1 1 . . Max in Single Turn 1 | . . . . . . . . . 1 . 1 1 . 1 1 1 . . Machines Repaired . | . . . . . . . . . . . . . . . . . . . Machines Dismantled . | . . . . . . . . . . . . . . . . . . . Machines Sabotaged . | . . . . . . . . . . . . . . . . . . . Overloaded Fab Kills . | . . . . . . . . . . . . . . . . . . . Hacking | -11 -10 -10 -10 -9 -8 -7 -6 -6 -6 -6 -6 -6 -5 -5 -5 -4 -4 -4 --------- Run | Yrd Mat Min Exi Min Mat Fac Fac Was Fac Low Low Dat Pro Fac Ext Fac Was Fac Machines Accessed 42 | . 2 . 2 1 4 3 1 . 4 . 1 4 . 3 8 3 . 6 Terminals 25 | . 2 . . 1 4 2 . . 1 . . . . 3 8 1 . 3 Fabricators 3 | . . . . . . . 1 . 1 . . . . . . . . 1 Repair Stations 3 | . . . . . . . . . 1 . . . . . . 1 . 1 Recycling Units . | . . . . . . . . . . . . . . . . . . . Scanalyzers 3 | . . . . . . 1 . . 1 . . . . . . 1 . . Garrison Access 1 | . . . . . . . . . . . . . . . . . . 1 Total Hacks 121 | . 4 . 2 3 13 8 2 . 12 . 1 29 . 6 20 7 . 14 Successful 68 | . 2 . 2 1 6 1 1 . 9 . 1 29 . 1 7 4 . 4 Failed 53 | . 2 . . 2 7 7 1 . 3 . . . . 5 13 3 . 10 Catastrophic 8 | . . . . . . 1 . . 1 . . . . . 2 1 . 3 Database Lockouts . | . . . . . . . . . . . . . . . . . . . Manual 29 | . 4 . 1 . 8 3 2 . 4 . . . . 2 2 . . 3 Terminals 57 | . 4 . . 3 13 4 . . 1 . . . . 6 20 1 . 5 Fabricators 8 | . . . . . . . 2 . 3 . . . . . . . . 3 Repair Stations 12 | . . . . . . . . . 5 . . . . . . 4 . 3 Recycling Units . | . . . . . . . . . . . . . . . . . . . Scanalyzers 9 | . . . . . . 4 . . 3 . . . . . . 2 . . Garrison Access 3 | . . . . . . . . . . . . . . . . . . 3 Terminal Hacks 46 | . . . 2 1 4 . . . 1 . 1 29 . 1 7 . . . Record 13 | . . . 1 . . . . . . . . 11 . . 1 . . . Part Schematic 11 | . . . . . . . . . . . . 11 . . . . . . Robot Schematic 4 | . . . . . . . . . . . . 4 . . . . . . Prototype ID Bank 3 | . . . . . . . . . . . . 3 . . . . . . Open Door 5 | . . . . . . . . . . . 1 . . 1 3 . . . Open DSF 1 | . . . . . . . . . 1 . . . . . . . . . Unreport Threat 2 | . . . . . 1 . . . . . . . . . 1 . . . Locate Traps 1 | . . . . . . . . . . . . . . . 1 . . . Dispatch Records 1 | . . . . 1 . . . . . . . . . . . . . . Hauler Manifests 1 | . . . . . . . . . . . . . . . 1 . . . Zone Layout 3 | . . . . . 3 . . . . . . . . . . . . . Derelict Proto ID Bank 1 | . . . 1 . . . . . . . . . . . . . . . Fabricator Hacks 2 | . . . . . . . . . . . . . . . . . . 2 Load Schematic 1 | . . . . . . . . . . . . . . . . . . 1 Build 1 | . . . . . . . . . . . . . . . . . . 1 Repair Station Hacks 9 | . . . . . . . . . 4 . . . . . . 3 . 2 Scan Component 5 | . . . . . . . . . 2 . . . . . . 2 . 1 Repair 4 | . . . . . . . . . 2 . . . . . . 1 . 1 Recycling Unit Hacks . | . . . . . . . . . . . . . . . . . . . Scanalyzer 5 | . . . . . . 1 . . 3 . . . . . . 1 . . Insert Component 3 | . . . . . . 1 . . 1 . . . . . . 1 . . Analyze 2 | . . . . . . . . . 2 . . . . . . . . . Garrison Access Hacks . | . . . . . . . . . . . . . . . . . . . Unauthorized Hacks 6 | . 2 . . . 2 . 1 . 1 . . . . . . . . . Terminals 4 | . 2 . . . 2 . . . . . . . . . . . . . Botnet 4 | . 2 . . . 2 . . . . . . . . . . . . . Fabricators 2 | . . . . . . . 1 . 1 . . . . . . . . . Fabnet 2 | . . . . . . . 1 . 1 . . . . . . . . . Repair Stations . | . . . . . . . . . . . . . . . . . . . Recycling Units . | . . . . . . . . . . . . . . . . . . . Scanalyzers . | . . . . . . . . . . . . . . . . . . . Garrison Access . | . . . . . . . . . . . . . . . . . . . Data Cores Recovered 3 | . . . . . . 1 . . . . . . . 1 1 . . . Used 2 | . . . . . . 1 . . . . . . . 1 . . . . Hacking Detections 31 | . 2 . . 1 4 3 1 . 4 . . . . 2 6 3 . 5 Full Trace Events 7 | . . . . 1 . 1 . . 1 . . . . . 2 . . 2 Feedback Events . | . . . . . . . . . . . . . . . . . . . Feedback Blocked . | . . . . . . . . . . . . . . . . . . . Robot Schematics Acquired 4 | . . . . . . . . . . . . 4 . . . . . . Robots Built . | . . . . . . . . . . . . . . . . . . . Authchips . | . . . . . . . . . . . . . . . . . . . Time . | . . . . . . . . . . . . . . . . . . . Total Robot Build Rating . | . . . . . . . . . . . . . . . . . . . Part Schematics Acquired 12 | . . . . . . . . . 1 . . 11 . . . . . . Parts Built 1 | . . . . . . . . . . . . . . . . . . 1 Authchips . | . . . . . . . . . . . . . . . . . . . Time 53 | . . . . . . . . . . . . . . . . . . 53 Total Part Build Rating 6 | . . . . . . . . . . . . . . . . . . 6 Parts Repaired 3 | . . . . . . . . . 1 . . . . . . 1 . 1 Time 276 | . . . . . . . . . 164 . . . . . . 56 . 56 Parts Recycled . | . . . . . . . . . . . . . . . . . . . Recycled Matter . | . . . . . . . . . . . . . . . . . . . Retrieved Matter . | . . . . . . . . . . . . . . . . . . . Retrieved Components . | . . . . . . . . . . . . . . . . . . . Parts Scanalyzed 2 | . . . . . . 1 . . 1 . . . . . . . . . Part Schematics Acquired 1 | . . . . . . . . . 1 . . . . . . . . . Parts Damaged . | . . . . . . . . . . . . . . . . . . . Bothacking | -11 -10 -10 -10 -9 -8 -7 -6 -6 -6 -6 -6 -6 -5 -5 -5 -4 -4 -4 ------------ Run | Yrd Mat Min Exi Min Mat Fac Fac Was Fac Low Low Dat Pro Fac Ext Fac Was Fac Used RIF Installer . | . . . . . . . . . . . . . . . . . . . Robots Hacked 5 | . . . . . . . . . . . . . 4 . . 1 . . Non-combat . | . . . . . . . . . . . . . . . . . . . Combat 5 | . . . . . . . . . . . . . 4 . . 1 . . Robot Hacks Applied . | . . . . . . . . . . . . . . . . . . . Relay Couplers Released . | . . . . . . . . . . . . . . . . . . . Fabnet Peak Effective % 6 | . . . . . . . . . . . . . 6 6 6 2 2 2 Autooverrided 5 | . . . . . . . . . . . . . 4 . . 1 . . Robots Rewired 5 | . . . . . . . . . . . . . . . 5 . . . Allies Hacked . | . . . . . . . . . . . . . . . . . . . Hacks Repelled . | . . . . . . . . . . . . . . . . . . . Allies | -11 -10 -10 -10 -9 -8 -7 -6 -6 -6 -6 -6 -6 -5 -5 -5 -4 -4 -4 -------- Run | Yrd Mat Min Exi Min Mat Fac Fac Was Fac Low Low Dat Pro Fac Ext Fac Was Fac Total Allies 37 | . . . . 5 . . . 18 . . . . 4 . 8 1 1 . Largest Group 18 | . . . . 4 4 . . 18 18 10 2 2 1 . 6 1 1 . Highest-Rated Group 656 | . . . . 68 68 . . 656 656 395 51 50 30 . 303 159 46 . Highest-Rated Ally 159 | . . . . 31 28 . . 50 50 50 26 25 30 . 159 159 46 . Total Orders 33 | . . . . . . . . 33 . . . . . . . . . . RETURN 33 | . . . . . . . . 33 . . . . . . . . . . Ally Attacks 590 | . . . . 14 20 . . 178 144 72 . . 16 . 141 3 2 . Total Damage 11938 | . . . . 118 194 . . 2675 4067 1933 . . 261 . 2568 64 58 . Kills 70 | . . . . 5 1 . . 6 34 7 . . 4 . 12 1 . . Allies Corrupted 3 | . . . . . . . . . . 2 . . . . . 1 . . Allies Melted . | . . . . . . . . . . . . . . . . . . . Intel | -11 -10 -10 -10 -9 -8 -7 -6 -6 -6 -6 -6 -6 -5 -5 -5 -4 -4 -4 ------- Run | Yrd Mat Min Exi Min Mat Fac Fac Was Fac Low Low Dat Pro Fac Ext Fac Was Fac Robot Analysis Total . | . . . . . . . . . . . . . . . . . . . Derelict Logs Recovered 6 | . . 2 . 1 . . . . . 2 . . 1 . . . . . Drone Launches 34 | . . . . . . . . 34 . . . . . . . . . . Drone Recoveries 33 | . . . . . . . . 33 . . . . . . . . . . Exploration | -11 -10 -10 -10 -9 -8 -7 -6 -6 -6 -6 -6 -6 -5 -5 -5 -4 -4 -4 ------------- Run | Yrd Mat Min Exi Min Mat Fac Fac Was Fac Low Low Dat Pro Fac Ext Fac Was Fac Turns Passed 17539 | 153 523 805 703 941 524 673 771 1604 1035 2136 1014 497 1622 640 2351 1155 122 270 Spaces Moved 9246 | 100 345 492 521 574 256 381 459 781 487 1246 573 214 890 292 817 403 128 287 Core 396 | 3 . . . . . . . . . . . . . . . . 110 283 Treads 7472 | . 56 . 21 574 256 381 459 781 487 1246 573 214 890 292 817 403 18 4 Legs 265 | . . . 265 . . . . . . . . . . . . . . . Wheels 1113 | 97 289 492 235 . . . . . . . . . . . . . . . Hover . | . . . . . . . . . . . . . . . . . . . Flight . | . . . . . . . . . . . . . . . . . . . Fastest Speed 50 | 50 95 95 90 160 155 155 156 155 160 160 160 160 155 156 156 155 50 50 Average Speed 146 | 91 105 97 121 160 161 169 156 161 160 160 160 160 156 156 156 155 64 51 Slowest Speed 240 | 95 160 110 240 160 240 235 156 236 160 160 160 160 160 156 156 160 155 160 Overloaded Moves . | . . . . . . . . . . . . . . . . . . . Propulsion Burnouts . | . . . . . . . . . . . . . . . . . . . Robots Hopped . | . . . . . . . . . . . . . . . . . . . Cave-ins Triggered 1 | . . . . . . . . . . . . . . . . 1 . . Exploration Rate (%) 51 | 5 42 81 71 98 37 12 17 97 13 99 69 78 81 8 64 8 83 10 Regions Visited 18 Branch Regions 8 Pre-discovered Areas 4 | . . 1 1 . . . . . . 1 . 1 . . . . . . Known Exits Taken 3 | . . . . . . . . . . 1 1 . 1 . . . . . Unknown Exits Taken 11 | 1 1 1 1 1 1 1 . . 1 . . 1 . 1 1 . . . Scrap Searched 11 | . . 1 . 2 . . . . . 2 4 . 2 . . . . . Spaces Dug 7 | . . . . . . . . . . . . . . . 3 4 . . Terrain Destroyed 126 | . . . . . . . . . . 2 5 5 25 26 38 23 . 2 Melee . | . . . . . . . . . . . . . . . . . . . Projectile 116 | . . . . . . . . . . 2 5 5 25 26 28 23 . 2 AOE 10 | . . . . . . . . . . . . . . . 10 . . . Terrain Rammed . | . . . . . . . . . . . . . . . . . . . Walls Destroyed . | . . . . . . . . . . . . . . . . . . . Machines Disabled . | . . . . . . . . . . . . . . . . . . . Actions | -11 -10 -10 -10 -9 -8 -7 -6 -6 -6 -6 -6 -6 -5 -5 -5 -4 -4 -4 --------- Run | Yrd Mat Min Exi Min Mat Fac Fac Was Fac Low Low Dat Pro Fac Ext Fac Was Fac Total 12636 | 129 439 806 596 594 359 409 516 1138 733 1326 643 311 1061 420 1765 858 151 382 Wait 2669 | 4 32 292 54 19 97 21 50 288 219 41 51 51 118 51 819 391 13 58 Move 9230 | 99 344 491 520 573 255 380 459 780 486 1245 572 213 889 291 816 403 127 287 Hop . | . . . . . . . . . . . . . . . . . . . Pick Up 96 | 5 10 5 6 . 1 2 2 20 6 1 2 1 6 12 7 5 1 4 Fast Attach 62 | 7 3 1 2 . 3 2 1 12 3 3 . 2 6 7 3 4 . 3 Attach 40 | . . . . . 1 1 1 1 2 . 1 5 3 5 2 11 1 6 Detach 20 | . . . 2 . . . . 1 3 1 . 1 4 1 . 4 . 3 Swap 54 | . 7 2 3 1 . . 1 6 1 2 3 2 1 7 12 5 1 . Drop 107 | . 10 8 9 . . 3 2 30 5 3 1 1 2 19 8 3 2 1 Fire 296 | 14 33 7 . 1 2 . . . . 29 12 30 29 27 60 32 6 14 Melee 16 | . . . . . . . . . 8 . 1 5 2 . . . . . Ram 6 | . . . . . . . . . . . . . . . . . . 6 Kick . | . . . . . . . . . . . . . . . . . . . Crush . | . . . . . . . . . . . . . . . . . . . Escape Stasis . | . . . . . . . . . . . . . . . . . . . Rewire 40 | . . . . . . . . . . 1 . . 1 . 38 . . . Trap . | . . . . . . . . . . . . . . . . . . . Miscellaneous . | . . . . . . . . . . . . . . . . . . . Route ------- -11/Scrapyard -10/Materials (discovered 2 exits: [*Mat] / [*Min]) -10/Mines (discovered 3 exits: [*Mat x2] / *Exi) -10/Exiles -9/Mines (discovered 2 exits: *Mat x2) -8/Materials -7/Factory (discovered 2 exits: *Fac / Sto) -6/Factory (discovered 2 exits: *Fac x2) -6/Waste -6/Factory (discovered 2 exits: [*Low x2]) -6/Lower Caves -6/Lower Caves (discovered 2 exits: *Fac / *Dat) -6/Data Miner -5/Proximity Caves -5/Factory (discovered 2 exits: Upp / *Ext) -5/Extension -4/Factory -4/Waste -4/Factory History --------- Turn | Location | Event 17 | -11/Scrapyard | Discovered new exit (range 15) 154 | -11/Scrapyard | Entered Materials 249 | -10/Materials | Discovered new exit (range 8) 311 | -10/Materials | Build established: Mutant 488 | -10/Materials | Discovered new exit (range 15) 677 | -10/Materials | Entered Mines 698 | -10/Mines | Assembled infested the area 703 | -10/Mines | Assisted by a Guerilla fighting off Assembled 982 | -10/Mines | Met a Derelict testing a Signal Generator 996 | -10/Mines | Found Signal Generator 1054 | -10/Mines | Discovered new exit (range 4) 1140 | -10/Mines | Discovered new exit (range 10) 1147 | -10/Mines | Learned location of Zion (-7) 1152 | -10/Mines | Received a Rocket Launcher from a helpful Derelict 1309 | -10/Mines | A weapon hastily lodged in a ceiling crevice suddenly fell to the ground 1361 | -10/Mines | Found a damaged Exp. Sensor Array with a note attached 1364 | -10/Mines | Found Prototype Device 1420 | -10/Mines | Build established: Scavenger-Mutant 1472 | -10/Mines | Deemed a non-threat by the Exiles lab entrance 1473 | -10/Mines | Discovered new exit (range 5) 1482 | -10/Mines | Entered Exiles 1509 | -10/Exiles | Met 8R-AWN 1529 | -10/Exiles | Met EX-HEX 1597 | -10/Exiles | Met EX-DEC 1702 | -10/Exiles | Met EX-BIN 1717 | -10/Exiles | Aligned with FarCom system 1719 | -10/Exiles | Given EX-Vault access code 1754 | -10/Exiles | Opened EX-Vault 1761 | -10/Exiles | Found Field Lobotomy Kit 1769 | -10/Exiles | Found Potential Leg 1773 | -10/Exiles | Found Potential Leg 1788 | -10/Exiles | Found Army-in-a-Box 1805 | -10/Exiles | Warned to stay clear of 0b10 Research branches 1862 | -10/Exiles | Build established: Mutant 1864 | -10/Exiles | Discovered new exit (range 10) 2185 | -10/Exiles | Stole three prototypes: Potential Leg, Army-in-a-Box, Field Lobotomy Kit 2185 | -10/Exiles | Entered Mines 2203 | -9/Mines | Met a Derelict bent on vengeance 2241 | -9/Mines | Learned Materials garrison access intel 2542 | -9/Mines | Discovered new exit (range 11) 2758 | -9/Mines | Discovered new exit (range 15) 3003 | -9/Mines | Assisted by bots powering up and referring to "LRC-V3" 3126 | -9/Mines | Entered Materials 3126 | -8/Materials | Accompanied by 4 allies 3126 | -8/Materials | Evolved 4 slots: Propulsion x1, Utility x2, Weapon x1 3127 | -8/Materials | Loaded intel: 1 garrison access location 3474 | -8/Materials | Build established: Tank 3490 | -8/Materials | Met 7R-MNS 3570 | -8/Materials | Garrison activated, responded to threat 3613 | -8/Materials | Lost 4 allies 3628 | -8/Materials | Discovered new exit (range 15) 3650 | -8/Materials | Entered Factory 3650 | -7/Factory | Evolved 2 slots: Power x1, Utility x1 3651 | -7/Factory | Caught up to 7R-MNS 3651 | -7/Factory | Identified exit to Storage 3652 | -7/Factory | FarCom data flow suspended 4232 | -7/Factory | Identified Exp. Sensor Array 4311 | -7/Factory | Discovered new exit (range 9) 4323 | -7/Factory | Entered another Factory area 4323 | -6/Factory | Evolved 2 slots: Propulsion x1, Utility x1 4324 | -6/Factory | Caught up to 7R-MNS 4516 | -6/Factory | Discovered new exit (range 9) 4801 | -6/Factory | Build established: Scavenger-Tank 4981 | -6/Factory | Discovered new exit (range 7) 5094 | -6/Factory | Sucked down chute 5094 | -6/Factory | Entered Waste 5120 | -6/Waste | Spotted C-40 Crusher 5132 | -6/Waste | Allies destroyed C-40 Crusher 5143 | -6/Waste | Spotted C-40 Crusher 5150 | -6/Waste | Allies destroyed C-40 Crusher 5184 | -6/Waste | Spotted C-40 Crusher 5197 | -6/Waste | Allies destroyed C-40 Crusher 5229 | -6/Waste | Spotted C-40 Crusher 5236 | -6/Waste | Allies destroyed C-40 Crusher 5278 | -6/Waste | Spotted C-40 Crusher 5284 | -6/Waste | Allies destroyed C-40 Crusher 5295 | -6/Waste | Spotted C-40 Crusher 5303 | -6/Waste | Allies destroyed C-40 Crusher 5341 | -6/Waste | Discovered new exit (range 17) 5396 | -6/Waste | Warlord forces began an assault 5437 | -6/Waste | Build established: Scavenger-Gunner 5949 | -6/Waste | Found Damper Plating 6105 | -6/Waste | Build established: Scavenger-Tank 6698 | -6/Waste | Entered Factory 6698 | -6/Factory | Accompanied by 18 allies 6861 | -6/Factory | Repaired Hvy. Treads 7175 | -6/Factory | Discovered new exit (range 15) 7192 | -6/Factory | Build established: Scavenger-Mutant 7344 | -6/Factory | Discovered new exit (range 5) 7398 | -6/Factory | First assault squad dispatched 7733 | -6/Factory | Entered Lower Caves 7733 | -6/Lower Caves | Accompanied by 10 allies 7979 | -6/Lower Caves | Encountered a Warlord checkpoint 8264 | -6/Lower Caves | Lost 5 allies 8464 | -6/Lower Caves | Spotted B-75 Beast 8485 | -6/Lower Caves | Destroyed B-75 Beast 8749 | -6/Lower Caves | Attracted the attention of an 0b10 checkpoint 8783 | -6/Lower Caves | Build established: Scavenger-Tank 9199 | -6/Lower Caves | Discovered new exit (range 11) 9359 | -6/Lower Caves | Identified exit to Lower Caves 9869 | -6/Lower Caves | Entered another Lower Caves area 9869 | -6/Lower Caves | Accompanied by 2 allies 9869 | -6/Lower Caves | Spotted 75-B7N(f) 9869 | -6/Lower Caves | Spotted E5-4XI(f) 9871 | -6/Lower Caves | Encountered a Master Thief 9871 | -6/Lower Caves | Encountered a Master Thief 9872 | -6/Lower Caves | Field Lobotomy Kit stolen by Master Thief 9897 | -6/Lower Caves | Discovered new exit (range 13) 9916 | -6/Lower Caves | Identified exit to Factory 10257 | -6/Lower Caves | Encountered a Warlord checkpoint 10742 | -6/Lower Caves | Discovered new exit (range 16) 10859 | -6/Lower Caves | Identified exit to Data Miner 10883 | -6/Lower Caves | Entered Data Miner 10883 | -6/Data Miner | Accompanied by 2 allies 10883 | -6/Data Miner | Discovered new exit (range 6) 10914 | -6/Data Miner | Met Data Miner 10946 | -6/Data Miner | Learned location of Section 7 (-2) 10946 | -6/Data Miner | Acquired the access code to Warlord's prototype stash 10975 | -6/Data Miner | Received God Mode back door access code from Data Miner 10999 | -6/Data Miner | Data Conduit disabled 11329 | -6/Data Miner | Build established: Scavenger-Mutant 11333 | -6/Data Miner | Found Prototype Device 11333 | -6/Data Miner | Identified Exp. Thermal Shield 11380 | -6/Data Miner | Entered Proximity Caves 11818 | -5/Proximity Caves | Lost 3 parts (1p1u1w) 12207 | -5/Proximity Caves | Learned Factory trap positions 12364 | -5/Proximity Caves | Attracted the attention of an 0b10 checkpoint 12656 | -5/Proximity Caves | Build established: Derelict-Gunner 12926 | -5/Proximity Caves | Discovered exit to Factory (range 15) 13002 | -5/Proximity Caves | Entered Factory 13002 | -5/Factory | Evolved 2 slots: Propulsion x1, Utility x1 13003 | -5/Factory | Identified exit to Upper Caves 13004 | -5/Factory | Loaded intel: 93 trap records 13568 | -5/Factory | Found Powered Armor 13578 | -5/Factory | Found Powered Armor 13580 | -5/Factory | Found Powered Armor 13588 | -5/Factory | Found Powered Armor 13636 | -5/Factory | Discovered new exit (range 6) 13642 | -5/Factory | Entered Extension 13814 | -5/Extension | Build established: Scavenger-Tank 13826 | -5/Extension | Rescued a captive Derelict 14985 | -5/Extension | Rescued a captive Derelict 15091 | -5/Extension | Rescued A7 15467 | -5/Extension | Disrupted transfer network 15534 | -5/Extension | Spotted B-75 Beast 15558 | -5/Extension | Destroyed B-75 Beast 15592 | -5/Extension | Spotted B-75 Beast 15612 | -5/Extension | Destroyed B-75 Beast 15989 | -5/Extension | Discovered new exit (range 3) 15993 | -5/Extension | Entered Factory 15993 | -4/Factory | Accompanied by 1 ally (A7) 15993 | -4/Factory | Evolved 2 slots: Utility x1, Weapon x1 16186 | -4/Factory | Repaired Hvy. Treads 16401 | -4/Factory | Crushed by falling debris 17148 | -4/Factory | Sucked down chute 17148 | -4/Factory | Entered Waste 17149 | -4/Waste | Met a frightened Derelict 17161 | -4/Waste | Spotted C-40 Crusher 17163 | -4/Waste | EMP discharged 17163 | -4/Waste | System corruption reached 10% 17198 | -4/Waste | Spotted C-40 Crusher 17203 | -4/Waste | Crushed by Compactor (1 part destroyed, 2 dropped) 17206 | -4/Waste | Crushed by Compactor (1 part destroyed, 2 dropped) 17209 | -4/Waste | Crushed by Compactor (1 part destroyed, 1 dropped) 17212 | -4/Waste | Crushed by Compactor (1 part destroyed, 1 dropped) 17213 | -4/Waste | Released all parts (7) 17233 | -4/Waste | Spotted C-40 Crusher 17234 | -4/Waste | Spotted C-40 Crusher 17238 | -4/Waste | Spotted C-40 Crusher 17243 | -4/Waste | Lost 5 parts (2p1u2w) 17250 | -4/Waste | Spotted C-40 Crusher 17263 | -4/Waste | EMP discharged 17263 | -4/Waste | Discovered new exit (range 12) 17270 | -4/Waste | Entered Factory 17338 | -4/Factory | Repaired Hvy. Treads 17377 | -4/Factory | Core integrity fell below 50% 17492 | -4/Factory | Build established: Mutant 17511 | -4/Factory | Fabricated Hvy. Treads (x1) 17521 | -4/Factory | Core integrity fell below 20% 17540 | -4/Factory | Destroyed by G-67 Veteran with Plasma Rifle Last Messages --------------- 17513_ G-67 Veteran overheating. 17514_ G-67 Veteran heat spikes uncontrollably. 17514_ G-67 Veteran overheating. 17515_ K-01 Serf collects debris. 17516_ U-05 Engineer works on Subcomponent Replicator. 17517_ Acquired Hvy. Treads. 17518_ K-01 Serf collects debris. 17519_ U-05 Engineer completes Subcomponent Replicator. 17521_ K-01 Serf collects debris. 17523_ Slug penetrates G-67 Veteran. 17524_ System corrupted: Heat flow error (+126). 17524_ K-01 Serf collects debris. 17524_ Subcomponent Replicator disabled. 17524_ Mass Driver destroyed. 17527_ K-01 Serf cleans the Fabricator. 17529_ R-10 Processor collects Lgt. Antimatter Reactor. 17531_ K-01 Serf collects debris. Map ----- +----------------------------------------------------+ | ?????????????????????????????????????????????????? | | ?????????????????????????????????????????????????? | | ?????????????????????????????????????????????????? | | ?????????????????????????????????????????????????? | | ?????????????????????????????????????????????????? | | ?????????????????????????????????????????????????? | | #????????????????????????????????????????????????? | | #????????????????????????????????????????????????? | | #????????????????????????????????????????????????? | | #?? ?????????????????????????????????????????????? | | #? ????????????????????????????????????????????? | | ## ????????????????????????????????????????????? | | #? ???????????????????????????????????????????? | | #?? ???????????????????????????????????????????? | | #??? ??????????????????????????????????????????? | | #??? ??????????????????????????????????????????? | | #???? ?????????????????????????????????????????? | | #######"#############+######?????????????????????? | | ??????????????????????? | | #????????????????????????? | | """ #????????????????????????? | | """ #????????????????????????? | | """ #????????????????????????? | | """"" #????????????????????????? | | """" """ ##########???????????????? | | """ """ @ #??????????? | | """ ????????? | | "" """"" g ????????? | | "" """"" """ ?????????? | | """ """ ##?????????? | | """g ##################+###??????????? | | "" """"" #???????????????????????????????? | | "" """"" """ ???????????????????????????????? | | ""? """ ???????????????????????????????? | | ?? """ ???????????????????????????????? | | ? "???" ? ??????????????????????????????? | | ? "???" ! ? ???????????????????????????????? | | ?? ????? ##???###???????????????????????????????? | | ?? ??????????????????????????????????????????????? | | ?????????????????????????????????????????????????? | | ?????????????????????????????????????????????????? | | ?????????????????????????????????????????????????? | | ?????????????????????????????????????????????????? | | ?????????????????????????????????????????????????? | | ?????????????????????????????????????????????????? | | ?????????????????????????????????????????????????? | | ?????????????????????????????????????????????????? | | ?????????????????????????????????????????????????? | | ?????????????????????????????????????????????????? | | ?????????????????????????????????????????????????? | +----------------------------------------------------+ Best States ------------- Heat Dissipation 100 Coolant Potential 100 Energy Generation 37 Energy Capacity 550 Matter Stores 500 Matter Capacity 500 Sight Range 16 Terrain Scan Density 10 Base Temperature (-) 150 Armor Coverage 3250 Resistance: TH 30 Resistance: EM 90 Evasion (%) 57 Targeting Accuracy 8 Melee Accuracy 6 Recoil Reduction 5 Matter Filtering 30 Kinecelleration 40 Offensive Hacking 10 Defensive Hacking 10 Item Schematics ----------------- Hvy. Treads | -6/Factory | Scanalyzed Combat Drone Bay | -6/Data Miner | Free Lgt. Regenerative Plating | -6/Data Miner | Free Cld. Nuclear Pulse Thruster | -6/Data Miner | Free Prc. Energy Filter | -6/Data Miner | Free Hvy. Gatling Laser | -6/Data Miner | Free Field Propulsion Array | -6/Data Miner | Free Adv. Cryofiber Web | -6/Data Miner | Free Hvy. Disruptor Cannon | -6/Data Miner | Free Hvy. Phase Cannon | -6/Data Miner | Free Imp. Remote Shield | -6/Data Miner | Free Hyp. Railgun | -6/Data Miner | Free Robot Schematics ------------------ X-72 Disruptor | -6/Data Miner | Free A-15 Conveyor | -6/Data Miner | Free L-41 Fighter | -6/Data Miner | Free E-15 Imp | -6/Data Miner | Free Fabricated ------------ Hvy. Treads | x1 | -4/Factory Alien Tech Used ----------------- None Achievements -------------- Prison Break Turtlemind Challenges ------------ None Game ------ Seed InertialOpticalSteel Manual? 0 Play Time 02:59:20 Cumulative 83.3 hours Start 2024.11.28 @ 03:40:07 End 2024.11.28 @ 07:11:51 Sessions 1 Manual Loads 0 Difficulty Rogue Special Mode None Game No. 56 Rogue 56 Adventurer 0 Explorer 0 Win Type - Total 1 Types 1/0/0/0/0/0/0/0/0 Lore% 23 Gallery% 44 Achievement% 44 Wizard Run 0 Options --------- Layout 2 ASCII 0 Keyboard 1 Movement Vi Keybinds 1 Fullscreen 1 Font 32/SmallcapsGlow Map View 50x44 Zoom Use 0% Tactical HUD 1 Map Filters NONE Filters NONE Steam 1 RUN: b772d7a7-b979-47ae-9212-b85b4d5dbefb